bitfinex-derivatives/quotes_SOLF0:USTF0_20260108
["timestamp","ask_amount","ask_price","bid_price","bid_amount"]
[1767902942922,5.24423583,136.76,136.7,10.52016831]
[1767902943528,5.24423583,136.76,136.72,3.92986831]
[1767902943734,90.19443661,136.79,136.72,3.92986831]
[1767902943929,8.97853349,136.78,136.7,3.92986831]
[1767902944231,8.97853349,136.77,136.7,3.92986831]
[1767902944421,5.24409688,136.76,136.7,3.92986831]
[1767902947540,11.83159688,136.76,136.7,3.92986831]
[1767902947737,5.24409688,136.75,136.7,3.92986831]
[1767902948629,5.24409688,136.75,136.71,3.92986831]
[1767902948830,6.5869,136.78,136.71,3.92986831]
[1767902949132,11.83388307,136.77,136.71,3.92986831]
[1767902949341,8.98131968,136.76,136.69,3.92986831]
[1767902949543,5.24744001,136.75,136.66,9.01369731]
[1767902949836,6.5889,136.73,136.67,6.5917]
[1767902950329,3.73443661,136.74,136.66,3.92986831]
[1767902950525,5.24656157,136.73,136.66,3.92986831]
[1767902950730,3.73443661,136.74,136.66,3.92986831]
[1767902951042,5.24652077,136.73,136.66,3.92986831]
[1767902951229,3.73443661,136.74,136.66,3.92986831]
[1767902951429,5.24616288,136.73,136.66,3.92986831]
[1767902951629,10.32283661,136.74,136.67,10.52146831]
[1767902951830,5.24616288,136.73,136.67,10.52146831]
[1767902952043,10.32283661,136.74,136.67,10.52146831]
[1767902952237,5.24568915,136.73,136.67,10.52146831]
[1767902952430,10.32283661,136.74,136.67,10.52146831]
[1767902952733,5.24596724,136.73,136.67,10.52146831]
[1767902952938,10.32283661,136.74,136.67,10.52146831]
[1767902953248,5.24664481,136.73,136.67,10.52146831]
[1767902953430,5.2462159,136.72,136.67,10.52146831]
[1767902953739,10.32283661,136.74,136.67,10.52146831]
[1767902953940,5.24614484,136.73,136.67,10.52146831]
[1767902954142,10.32283661,136.74,136.67,10.52146831]
[1767902954340,5.24580898,136.73,136.67,10.52146831]
[1767902954636,10.32283661,136.74,136.67,10.52146831]
[1767902954838,5.24556234,136.73,136.67,10.52146831]
[1767902955023,10.32283661,136.74,136.67,10.52146831]
[1767902955231,5.24537658,136.73,136.67,10.52146831]
[1767902955430,10.32283661,136.74,136.67,10.52146831]
[1767902955626,5.29879156,136.73,136.69,3.65702425]
[1767902955929,3.64127115,136.76,136.68,6.5912]
[1767902956135,11.79733818,136.75,136.68,6.5912]
[1767902956324,5.29873889,136.74,136.68,6.5912]
[1767902956526,5.29873889,136.73,136.67,3.65702425]
[1767902956731,13.08659929,136.75,136.67,3.65702425]
[1767902956932,5.29839726,136.74,136.67,3.65702425]
[1767902957138,5.29839726,136.73,136.67,3.65702425]
[1767902957339,13.08659929,136.75,136.67,3.65702425]
[1767902957538,15.52779707,136.74,136.67,3.65702425]
[1767902957839,5.29802592,136.73,136.67,3.65702425]
[1767902958029,5.29802592,136.72,136.67,3.65702425]
[1767902958230,10.22977115,136.74,136.67,3.65702425]
[1767902958430,5.29785441,136.73,136.67,3.65702425]
[1767902958740,10.22977115,136.74,136.67,3.65702425]
[1767902959038,5.29785558,136.73,136.67,3.65702425]
[1767902959238,10.22977115,136.74,136.67,3.65702425]
[1767902959442,5.29802837,136.73,136.67,3.65702425]
[1767902959641,10.22977115,136.74,136.67,3.65702425]
[1767902959848,5.29802837,136.73,136.67,3.65702425]
[1767902960041,5.29802837,136.72,136.67,3.65702425]
[1767902960439,8.93929952,136.72,136.65,9.01369731]
[1767902960637,5.2984673,136.71,136.65,3.65702425]
[1767902960842,3.64127115,136.72,136.65,3.65702425]
[1767902961039,5.29777883,136.71,136.65,3.65702425]
[1767902961235,3.64127115,136.72,136.65,3.65702425]
[1767902961542,5.29904986,136.71,136.65,10.24952425]
[1767902961739,10.23067115,136.72,136.65,10.24952425]
[1767902961939,5.29904693,136.71,136.65,10.24952425]
[1767902962134,3.64127115,136.71,136.65,6.5925]
[1767902962342,3.64127115,136.71,136.63,3.65702425]
[1767902962343,8.94102421,136.7,136.63,3.65702425]
[1767902962531,3.64127115,136.7,136.63,3.65702425]
[1767902963133,6.5899,136.71,136.64,10.25022425]
[1767902963749,3.64127115,136.71,136.65,6.5926]
[1767902964248,3.64127115,136.71,136.66,6.5922]
[1767902964438,3.64127115,136.71,136.64,3.65702425]
[1767902965148,10.23107115,136.71,136.65,6.5927]
[1767902965447,5.30839902,136.7,136.65,6.5927]
[1767902965637,3.64127115,136.71,136.65,6.5927]
[1767902965837,5.30821172,136.7,136.65,6.5927]
[1767902966034,3.64127115,136.71,136.65,6.5927]
[1767902966249,6.49859929,136.73,136.66,3.65702425]
[1767902966450,8.94930354,136.72,136.66,3.65702425]
[1767902966638,5.30803239,136.71,136.66,10.24902425]
[1767902966843,3.64127115,136.72,136.66,10.24902425]
[1767902967043,5.30803122,136.71,136.66,10.24902425]
[1767902967238,3.64127115,136.72,136.66,10.24902425]
[1767902967445,5.30763656,136.71,136.66,10.24902425]
[1767902967648,3.64127115,136.72,136.66,10.24902425]
[1767902967849,5.30788609,136.71,136.65,3.65702425]
[1767902968151,3.64127115,136.72,136.65,3.65702425]
[1767902968352,5.3075615,136.71,136.65,3.65702425]
[1767902968541,10.23077115,136.72,136.65,3.65702425]
[1767902968847,5.30800743,136.71,136.65,6.5927]
[1767902969054,3.64127115,136.72,136.66,3.65702425]
[1767902969250,5.30769403,136.71,136.66,3.65702425]
[1767902969447,3.64127115,136.72,136.66,3.65702425]
[1767902969645,5.30763303,136.71,136.66,3.65702425]
[1767902969951,3.64127115,136.72,136.66,3.65702425]
[1767902970248,5.30759453,136.71,136.66,3.65702425]
[1767902970443,5.30759453,136.71,136.6,28.14724148]
[1767902970444,8.94872863,136.7,136.6,28.14724148]
[1767902970644,3.64127115,136.68,136.61,3.65702425]
[1767902970844,10.23257115,136.68,136.61,10.25142425]
[1767902972248,6.5906,136.7,136.62,3.65702425]
[1767902972446,5.30328542,136.69,136.62,3.65702425]
[1767902972646,5.30328542,136.68,136.62,3.65702425]
[1767902972849,6.5906,136.7,136.62,3.65702425]
[1767902973050,5.30330015,136.69,136.62,3.65702425]
[1767902973248,5.30330015,136.68,136.64,3.61757355]
[1767902973451,3.6651128,136.72,136.64,3.61757355]
[1767902973650,5.30196359,136.71,136.64,3.61757355]
[1767902973843,5.30196359,136.7,136.64,3.61757355]
[1767902974042,5.30196359,136.69,136.64,3.61757355]
[1767902974250,3.6651128,136.71,136.64,3.61757355]
[1767902974552,115.6337,136.78,136.64,3.61757355]
[1767902974553,2.85732814,136.74,136.64,3.61757355]
[1767902974755,3.6651128,136.71,136.64,3.61757355]
[1767902975055,5.30113353,136.7,136.64,3.61757355]
[1767902975557,5.30113353,136.7,136.65,6.5926]
[1767902975754,3.6651128,136.71,136.65,6.5926]
[1767902975950,3.6651128,136.73,136.64,3.61757355]
[1767902976150,5.30181265,136.72,136.66,6.592]
[1767902976356,3.6651128,136.73,136.66,3.61757355]
[1767902976656,5.30231986,136.72,136.66,3.61757355]
[1767902976958,3.6651128,136.73,136.66,3.61757355]
[1767902977140,5.30231986,136.72,136.66,3.61757355]
[1767902977341,3.6651128,136.73,136.66,3.61757355]
[1767902977540,5.30257459,136.72,136.67,3.61757355]
[1767902977762,3.6651128,136.75,136.67,3.61757355]
[1767902977947,5.30259163,136.74,136.67,3.61757355]
[1767902978246,5.30259163,136.73,136.67,3.61757355]
[1767902978447,5.30259163,136.72,136.67,3.61757355]
[1767902978648,10.2530128,136.75,136.68,6.5911]
[1767902978853,5.30265752,136.74,136.68,6.5911]
[1767902979049,5.30265752,136.73,136.68,6.5911]
[1767902979252,10.2530128,136.75,136.68,6.5911]
[1767902979462,5.30275019,136.74,136.68,6.5911]
[1767902979756,5.30275019,136.73,136.68,6.5911]
[1767902979952,5.30275019,136.72,136.68,6.5911]
[1767902980158,10.2530128,136.75,136.68,6.5911]
[1767902980358,5.30300183,136.74,136.68,6.5911]
[1767902980548,5.30300183,136.73,136.68,6.5911]
[1767902980857,3.6651128,136.75,136.69,6.5907]
[1767902981862,10.2531128,136.75,136.67,3.61757355]
[1767902983360,3.6651128,136.75,136.67,3.61757355]
[1767902984765,3.6651128,136.75,136.7,6.5902]
[1767902984949,6.5873,136.77,136.7,6.5902]
[1767902985152,10.2524128,136.77,136.7,6.5902]
[1767902986462,10.2524128,136.77,136.7,10.20777355]
[1767902986862,3.6651128,136.77,136.72,6.5892]
[1767902987167,86.5,136.78,136.72,10.20677355]
[1767902987365,86.5,136.78,136.72,3.61757355]
[1767902987868,3.6651128,136.79,136.72,3.61757355]
[1767902988257,10.2504128,136.81,136.72,3.61757355]
[1767902988566,10.2504128,136.81,136.76,6.5873]
[1767902988567,3.6651128,136.81,136.76,6.5873]
[1767902988863,3.6651128,136.83,136.74,3.61757355]
[1767902989362,3.6651128,136.83,136.77,6.5869]
[1767902989566,3.6651128,136.83,136.76,3.61757355]
[1767902990670,10.2493128,136.83,136.76,10.20477355]
[1767902991566,3.6651128,136.83,136.77,6.5868]
[1767902992367,10.2491128,136.83,136.75,6.5877]
[1767902992568,3.6651128,136.82,136.73,3.61757355]
[1767902993673,10.2497128,136.82,136.74,6.5882]
[1767902993973,3.6651128,136.81,136.74,6.5882]
[1767902994766,3.6651128,136.81,136.74,10.20577355]
[1767902995365,10.2502128,136.81,136.74,10.20577355]
[1767902995571,3.6651128,136.8,136.74,3.61757355]
[1767902996072,3.6651128,136.79,136.72,10.20647355]
[1767902997669,10.2511128,136.79,136.72,10.20647355]
[1767903000281,3.6651128,136.83,136.73,3.61757355]
[1767903000466,3.6651128,136.82,136.73,3.61757355]
[1767903000768,3.6651128,136.82,136.72,6.81656925]
[1767903000769,3.6651128,136.82,136.75,3.61757355]
[1767903001660,10.2497128,136.82,136.75,10.20537355]
[1767903002169,6.5846,136.82,136.76,10.20497355]
[1767903002766,10.2491128,136.84,136.77,10.20713092]
[1767903003174,10.2491128,136.84,136.76,1.82666409]
[1767903003175,1.82666409,136.86,136.78,3.62023092]
[1767903003374,1.82666409,136.86,136.8,6.5854]
[1767903003770,1.82666409,136.86,136.79,3.62023092]
[1767903004079,1.82666409,136.86,136.78,1.82666409]
[1767903004080,90.37358639,136.89,136.81,3.62023092]
[1767903004268,5.74025048,136.89,136.81,3.62023092]
[1767903004468,6.5809,136.9,136.83,3.62023092]
[1767903004972,3.91358639,136.91,136.83,3.62023092]
[1767903006165,3.67477345,136.93,136.85,3.67284183]
[1767903006376,3.67477345,136.95,136.86,1.82666409]
[1767903006676,1.82666409,136.96,136.88,3.67284183]
[1767903006867,3.67477345,136.98,136.89,1.82666409]
[1767903007073,86.44,137.0,136.92,6.5795]
[1767903007379,1.82666409,136.99,136.92,3.67284183]
[1767903007571,91.94143754,137.0,136.92,3.67284183]
[1767903007776,3.67477345,136.99,136.92,3.67284183]
[1767903007976,5.50143754,136.98,136.88,3.67284183]
[1767903008280,1.82666409,136.95,136.88,3.67284183]
[1767903008781,3.67477345,136.97,136.88,3.67284183]
[1767903008975,1.82666409,136.96,136.88,3.67284183]
[1767903009283,5.50143754,136.96,136.88,3.67284183]
[1767903009478,3.67477345,136.96,136.88,3.67284183]
[1767903009680,5.50143754,136.96,136.88,10.25424183]
[1767903009978,3.67477345,136.95,136.88,3.67284183]
[1767903010777,1.82666409,136.97,136.88,3.67284183]
[1767903010974,5.50143754,136.98,136.9,3.67284183]
[1767903011475,5.50143754,136.98,136.9,10.25324183]
[1767903011678,5.50143754,136.98,136.91,3.67284183]
[1767903011883,1.82666409,136.98,136.91,3.67284183]
[1767903012281,8.40326409,136.99,136.91,3.67284183]
[1767903012576,10.25137345,136.99,136.91,3.67284183]
[1767903012780,12.07803754,136.99,136.91,3.67284183]
[1767903013170,10.25177345,136.98,136.91,3.67284183]
[1767903013671,3.67477345,136.98,136.91,10.25284183]
[1767903013880,10.25087345,137.0,136.91,12.07950592]
[1767903014179,12.07753754,137.0,136.92,3.67284183]
[1767903014381,12.07753754,137.0,136.89,102.37]
[1767903014382,5.50143754,136.98,136.9,3.67284183]
[1767903015585,6.5776,136.97,136.9,3.67284183]
[1767903015781,5.50143754,136.98,136.9,3.67284183]
[1767903015976,102.2872,137.01,136.92,3.67284183]
[1767903015977,5.50143754,137.01,136.92,3.67284183]
[1767903016179,1.82666409,136.99,136.92,3.67284183]
[1767903017283,10.25197345,136.98,136.9,1.82666409]
[1767903017487,3.67477345,136.97,136.9,1.82666409]
[1767903017686,1.82666409,136.96,136.9,3.67284183]
[1767903017880,3.67477345,136.95,136.87,10.25464183]
[1767903018088,5.50143754,136.94,136.87,10.25464183]
[1767903018590,1.82666409,136.92,136.84,3.67284183]
[1767903018791,5.50143754,136.92,136.84,3.67284183]
[1767903019083,12.08123754,136.92,136.84,10.25624183]
[1767903019484,3.67477345,136.92,136.84,3.67284183]
[1767903019786,1.82666409,136.93,136.87,3.67284183]
[1767903020081,3.67477345,136.95,136.87,3.67284183]
[1767903020282,5.50143754,136.98,136.88,3.67284183]
[1767903020483,5.50143754,136.98,136.89,1.82666409]
[1767903020686,5.50143754,136.98,136.9,3.67284183]
[1767903021477,1.82666409,136.96,136.88,6.5814]
[1767903021789,5.50143754,136.96,136.88,6.5814]
[1767903022088,10.25317345,136.95,136.87,90.03284183]
[1767903022286,10.25317345,136.95,136.87,3.67284183]
[1767903022484,1.82666409,136.94,136.87,3.67284183]
[1767903022679,1.82666409,136.92,136.85,6.5827]
[1767903023088,1.82666409,136.92,136.84,3.67284183]
[1767903024092,1.82666409,136.92,136.86,6.5825]
[1767903024794,3.67477345,136.93,136.87,6.582]
[1767903026285,3.67477345,136.93,136.88,6.5815]
[1767903026487,1.82666409,136.95,136.88,6.5815]
[1767903026989,3.67477345,136.96,136.88,6.5815]
[1767903027294,12.07933754,136.96,136.88,6.5815]
[1767903027890,5.50143754,136.96,136.88,3.67284183]
[1767903028998,3.67477345,136.96,136.88,3.67284183]
[1767903029193,5.50143754,136.96,136.88,3.67284183]
[1767903029393,5.50143754,136.96,136.9,6.5805]
[1767903031999,5.50143754,136.96,136.91,6.5801]
[1767903032594,3.67477345,136.96,136.91,6.5801]
[1767903033094,3.84348396,136.98,136.91,6.5801]
[1767903033797,15.30348073,137.0,136.91,3.6601823]
[1767903034003,3.84348396,137.0,136.92,3.6601823]
[1767903034304,3.84348396,137.0,136.96,6.5776]
[1767903034504,3.84348396,137.03,136.96,6.5776]
[1767903034903,3.84348396,137.03,136.94,105.9959823]
[1767903035110,3.84348396,137.05,136.96,3.6601823]
[1767903035904,3.84348396,137.04,136.97,6.5773]
[1767903036105,3.84348396,137.04,136.96,3.6601823]
[1767903037015,90.20348396,137.06,136.98,3.6601823]
[1767903037310,3.84348396,137.06,136.98,3.6601823]
[1767903038406,96.75528396,137.09,136.99,3.6601823]
[1767903038602,3.84348396,137.08,136.99,105.9566823]
[1767903038808,3.84348396,137.08,137.0,3.6601823]
[1767903039212,3.84348396,137.08,137.0,10.2357823]
[1767903039714,3.84348396,137.08,137.01,6.5752]
[1767903044917,3.89249149,137.06,136.97,3.6601823]
[1767903045306,3.84348396,137.06,136.97,3.6601823]
[1767903045611,3.84348396,137.05,136.97,10.2372823]
[1767903046713,10.41708396,137.05,136.97,10.2372823]
[1767903047715,10.41708396,137.05,136.98,6.5766]
[1767903049811,3.84348396,137.04,136.98,6.5766]
[1767903050014,3.84348396,137.08,137.0,3.6601823]
[1767903051717,10.41568396,137.08,137.01,6.5752]
[1767903051912,102.2257,137.09,136.96,109.13216925]
[1767903052113,3.84348396,137.07,136.97,3.6601823]
[1767903052614,1.82087516,137.06,136.97,3.6601823]
[1767903052810,3.84348396,137.05,136.97,10.2370823]
[1767903053014,5.66435912,137.04,136.97,10.2370823]
[1767903053515,3.84348396,137.04,136.97,10.2370823]
[1767903053918,1.82087516,137.03,136.97,10.2370823]
[1767903054222,1.82087516,137.01,136.95,10.8191523]
[1767903054414,1.82087516,137.01,136.95,4.2413523]
[1767903054714,3.84348396,137.02,136.95,4.2413523]
[1767903055517,3.84348396,137.02,136.96,6.5776]
[1767903055708,3.84348396,137.02,136.95,0.58117]
[1767903055912,3.45927518,137.0,136.91,3.6601823]
[1767903058617,3.45927518,137.0,136.93,3.6601823]
[1767903059211,86.3,137.01,136.94,3.6601823]
[1767903059414,3.45927518,137.03,136.94,3.6601823]
[1767903059714,3.45927518,137.03,136.95,6.578]
[1767903059914,3.45927518,137.03,136.95,3.6601823]
[1767903060316,3.45927518,137.03,136.95,10.2379823]
[1767903060507,3.45927518,137.03,136.95,3.6601823]
[1767903061721,10.03407518,137.03,136.96,6.5777]
[1767903062615,3.45824422,137.01,136.94,6.5784]
[1767903063020,3.45824422,136.98,136.89,3.95519811]
[1767903063223,89.75824422,136.98,136.89,3.95519811]
[1767903064023,3.45824422,137.01,136.92,3.95519811]
[1767903065720,3.45824422,137.01,136.94,6.5787]
[1767903068624,3.45824422,137.01,136.92,3.95519811]
[1767903068625,3.4546442,137.03,136.92,3.74101605]
[1767903070523,6.5754,137.01,136.93,6.5791]
[1767903070717,10.0300442,137.01,136.93,6.5791]
[1767903071221,3.4546442,136.99,136.9,3.74101605]
[1767903072330,3.4546442,136.99,136.9,106.10271605]
[1767903072528,3.4546442,136.99,136.91,3.74101605]
[1767903073029,3.4546442,136.99,136.92,3.74101605]
[1767903073230,89.7746442,137.02,136.95,6.5782]
[1767903073522,3.4546442,137.01,136.95,6.5782]
[1767903074432,3.4546442,137.0,136.92,3.74101605]
[1767903075435,3.4546442,137.0,136.94,6.5786]
[1767903075638,3.4546442,137.0,136.89,112.9276853]
[1767903075931,3.4546442,136.98,136.89,3.74101605]
[1767903076325,89.7746442,136.98,136.89,3.74101605]
[1767903077332,89.7746442,136.98,136.92,6.5797]
[1767903079136,89.7746442,136.98,136.93,6.5791]
[1767903081035,3.4546442,136.97,136.91,6.5798]
[1767903081240,3.4546442,136.96,136.86,106.13171605]
[1767903081432,3.4546442,136.96,136.86,3.74101605]
[1767903081632,3.4546442,136.94,136.86,3.74101605]
[1767903082136,3.4546442,136.94,136.84,106.14511605]
[1767903082335,3.4546442,136.94,136.85,3.74101605]
[1767903082529,89.7746442,136.94,136.88,6.5816]
[1767903083133,3.4546442,136.93,136.86,6.5823]
[1767903083539,89.7946442,136.92,136.86,6.5823]
[1767903083932,89.7946442,136.92,136.87,6.5821]
[1767903087925,86.34,136.92,136.88,6.5815]
[1767903091847,86.34,136.92,136.86,6.5823]
[1767903092033,89.7946442,136.92,136.85,3.74101605]
[1767903092846,89.7946442,136.92,136.88,6.5816]
[1767903093243,89.7946442,136.92,136.85,3.74101605]
[1767903093449,89.8146442,136.92,136.85,3.74101605]
[1767903094543,89.8146442,136.92,136.87,6.5821]
[1767903095146,3.4630264,136.91,136.83,3.71754362]
[1767903095539,86.36,136.9,136.83,3.71754362]
[1767903095740,86.36,136.9,136.86,6.5826]
[1767903096146,89.8230264,136.9,136.83,3.71754362]
[1767903096449,3.4630264,136.9,136.83,3.71754362]
[1767903097549,3.4630264,136.9,136.86,6.5823]
[1767903098350,3.4630264,136.9,136.84,6.5832]
[1767903101960,89.8430264,136.9,136.84,6.5832]
[1767903102763,3.4630264,136.89,136.84,6.5832]
[1767903105361,86.38,136.9,136.85,6.583]
[1767903105561,3.4630264,136.91,136.85,6.583]
[1767903105762,86.38,136.9,136.85,6.583]
[1767903107359,89.8430264,136.9,136.83,10.30114362]
[1767903107568,89.8430264,136.9,136.81,102.4307]
[1767903107569,3.4630264,136.89,136.81,3.71754362]
[1767903108167,86.38,136.88,136.81,3.71754362]
[1767903108369,89.8430264,136.88,136.81,3.71754362]
[1767903108668,89.8430264,136.88,136.82,6.5843]
[1767903109162,86.38,136.88,136.83,6.584]
[1767903109759,3.4630264,136.9,136.83,10.30154362]
[1767903109964,86.38,136.89,136.84,6.5835]
[1767903110165,89.8430264,136.9,136.83,3.71754362]
[1767903111569,89.8430264,136.9,136.85,6.583]
[1767903113262,3.4630264,136.89,136.83,6.5836]
[1767903113668,89.8430264,136.89,136.83,6.5836]
[1767903113874,89.8430264,136.89,136.84,6.5834]
[1767903114376,3.4630264,136.88,136.82,6.5842]
[1767903115372,3.4630264,136.88,136.8,3.71754362]
[1767903116174,3.4630264,136.88,136.81,6.5845]
[1767903116677,86.38,136.87,136.8,3.71754362]
[1767903117079,86.38,136.87,136.82,6.5841]
[1767903117270,86.38,136.87,136.8,3.71754362]
[1767903118478,86.38,136.87,136.83,6.584]
[1767903119376,3.4630264,136.86,136.79,102.4427]
[1767903119579,3.4630264,136.86,136.79,106.16024362]
[1767903120080,3.4630264,136.86,136.82,6.5845]
[1767903121683,6.5807,136.9,136.8,3.71754362]
[1767903121881,7.28162103,136.93,136.8,106.15524362]
[1767903122082,86.4,136.92,136.81,3.71754362]
[1767903122576,86.4,136.91,136.81,3.71754362]
[1767903123278,92.9803,136.91,136.84,6.5831]
[1767903127482,92.9803,136.91,136.85,6.583]
[1767903130595,1.82521023,136.9,136.85,6.583]
[1767903131092,1.82521023,136.94,136.85,106.34461529]
[1767903131288,86.4,136.93,136.86,3.94401529]
[1767903131480,1.82521023,136.94,136.86,3.94401529]
[1767903131689,88.22521023,136.94,136.89,6.5811]
[1767903132384,88.22521023,136.94,136.87,3.94401529]
[1767903132385,86.4,136.94,136.87,3.94401529]
[1767903132593,88.22521023,136.94,136.84,3.94401529]
[1767903132792,1.82521023,136.92,136.84,3.94401529]
[1767903132994,88.22521023,136.92,136.84,3.94401529]
[1767903133192,88.22521023,136.92,136.87,6.5821]
[1767903133694,88.22521023,136.92,136.84,3.94401529]
[1767903134598,88.22521023,136.92,136.86,6.5823]
[1767903135395,88.22521023,136.92,136.87,6.5821]
[1767903137501,88.22521023,136.92,136.86,6.5826]
[1767903140703,88.22521023,136.92,136.84,3.94401529]
[1767903140897,1.82521023,136.92,136.84,3.94401529]
[1767903141089,86.38,136.91,136.84,3.94401529]
[1767903142297,86.38,136.91,136.84,10.76058454]
[1767903142603,86.38,136.91,136.85,6.583]
[1767903143604,1.82521023,136.9,136.83,6.5838]
[1767903143908,1.82521023,136.89,136.83,6.5838]
[1767903144701,1.82521023,136.89,136.81,6.81656925]
[1767903145003,1.82521023,136.87,136.8,6.81656925]
[1767903145208,86.38,136.86,136.81,6.585]
[1767903146498,86.38,136.86,136.82,6.5845]
[1767903146803,86.38,136.86,136.79,3.74426562]
[1767903147006,86.38,136.86,136.82,6.5844]
[1767903147201,86.38,136.86,136.79,3.74426562]
[1767903149107,92.9626,136.86,136.8,6.5853]
[1767903149301,86.38,136.86,136.79,3.74426562]
[1767903150809,1.82521023,136.85,136.79,10.33016562]
[1767903151605,1.82521023,136.85,136.79,6.5859]
[1767903151911,86.38,136.86,136.8,3.74426562]
[1767903152104,1.82521023,136.88,136.8,3.74426562]
[1767903152304,86.4,136.87,136.8,3.74426562]
[1767903152609,1.82521023,136.86,136.8,3.74426562]
[1767903153513,92.9821,136.87,136.8,3.74426562]
[1767903153811,6.5821,136.87,136.8,3.74426562]
[1767903154613,6.5821,136.87,136.81,6.5849]
[1767903155016,88.22521023,136.88,136.81,3.6825434]
[1767903155206,1.82521023,136.88,136.81,3.6825434]
[1767903155401,1.82521023,136.88,136.82,6.5844]
[1767903155717,102.3246,136.96,136.82,3.6825434]
[1767903155718,8.40591023,136.91,136.82,3.6825434]
[1767903155908,86.4,136.9,136.82,3.6825434]
[1767903156312,1.82521023,136.91,136.82,3.6825434]
[1767903156615,86.4,136.9,136.82,3.6825434]
[1767903157819,86.4,136.9,136.8,8.64177948]
[1767903157820,92.9809,136.9,136.83,10.2665434]
[1767903162718,6.5812,136.89,136.83,3.6825434]
[1767903163815,86.4,136.9,136.81,6.81656925]
[1767903163816,6.5816,136.88,136.81,10.49911265]
[1767903164116,88.22521023,136.9,136.81,10.49911265]
[1767903164518,88.22521023,136.9,136.82,3.6825434]
[1767903165721,94.80631023,136.9,136.82,10.2670434]
[1767903166424,94.80631023,136.9,136.83,10.2665434]
[1767903166719,6.5799,136.92,136.84,3.6825434]
[1767903167112,86.4,136.93,136.85,3.6825434]
[1767903167319,102.2793,137.02,136.87,3.6825434]
[1767903167519,1.82521023,136.96,136.87,3.6825434]
[1767903167909,8.40341023,136.96,136.9,6.5806]
[1767903168113,6.5782,136.96,136.88,3.6825434]
[1767903169623,6.5782,136.96,136.88,10.2637434]
[1767903170422,6.5782,136.96,136.89,6.5811]
[1767903170728,6.5782,136.96,136.89,10.2636434]
[1767903171322,88.22521023,136.97,136.9,6.5806]
[1767903171730,88.22521023,136.97,136.9,10.2631434]
[1767903174929,6.5781,136.96,136.9,3.6825434]
[1767903175130,1.82521023,136.95,136.88,3.6825434]
[1767903176530,1.82521023,136.95,136.89,6.5811]
[1767903176725,1.82521023,136.95,136.89,10.2636434]
[1767903179535,6.5781,136.96,136.89,10.2636434]
[1767903179834,8.40331023,136.96,136.89,10.2636434]
[1767903181035,6.5781,136.96,136.89,10.2636434]
[1767903181330,8.40331023,136.96,136.89,10.2636434]
[1767903182738,8.40331023,136.96,136.9,6.5807]
[1767903183127,1.82521023,137.01,136.93,3.75274156]
[1767903183333,88.18521023,137.01,136.93,3.75274156]
[1767903183634,88.18521023,137.01,136.93,10.33194156]
[1767903184024,88.18521023,137.01,136.93,3.75274156]
[1767903184631,92.9359,137.01,136.94,6.5786]
[1767903184840,86.36,137.01,136.93,3.75274156]
[1767903185536,6.576,137.0,136.93,10.33194156]
[1767903186541,6.576,137.0,136.9,102.3613]
[1767903186542,86.36,137.01,136.94,3.75274156]
[1767903186735,86.36,137.01,136.95,3.75274156]
[1767903187230,86.36,137.01,136.95,10.33094156]
[1767903187435,92.9354,137.01,136.95,10.33094156]
[1767903187641,105.09743526,137.06,136.95,3.75274156]
[1767903187838,0.05005694,136.99,136.97,0.048522]
[1767903188342,86.34,137.04,136.95,3.75274156]
[1767903188542,6.5745,137.03,136.96,6.5777]
[1767903188937,6.5745,137.03,136.96,10.33044156]
[1767903190440,6.5745,137.03,136.97,3.75274156]
[1767903190735,6.5735,137.05,136.97,3.75274156]
[1767903190935,86.34,137.07,136.97,3.75274156]
[1767903191138,86.34,137.07,136.99,10.17365004]
[1767903191337,86.34,137.07,137.0,3.59745004]
[1767903191737,2.84723526,137.09,137.0,3.59745004]
[1767903191939,0.05387141,137.05,137.0,3.59745004]
[1767903192141,86.34,137.1,137.02,0.05623453]
[1767903192335,2.84723526,137.11,137.02,0.05623453]
[1767903192640,6.5717,137.09,137.02,0.05623453]
[1767903192842,6.5717,137.09,137.01,3.59745004]
[1767903193342,6.5721,137.08,137.01,3.59745004]
[1767903193642,6.5721,137.08,137.04,0.04837578]
[1767903194244,6.5721,137.08,137.01,3.59745004]
[1767903195143,6.5727,137.07,137.01,3.59745004]
[1767903195346,6.5727,137.07,136.99,3.59745004]
[1767903195540,2.84723526,137.07,136.94,3.59745004]
[1767903195736,89.16723526,137.07,136.95,3.59745004]
[1767903196232,86.32,137.07,136.98,3.59745004]
[1767903196741,2.84723526,137.11,137.0,3.59745004]
[1767903196941,89.16723526,137.11,137.0,3.59745004]
[1767903198631,6.5717,137.09,137.01,10.17255004]
[1767903198831,89.16723526,137.11,137.02,3.59745004]
[1767903199144,6.5717,137.09,136.99,6.576]
[1767903199438,188.5176,137.1,137.0,3.59745004]
[1767903199640,2.84723526,137.09,137.01,3.59745004]